[Event "GER-ch Youth U12W 2020"]
[Site "Willingen"]
[Date "2020.10.29"]
[Round "4.14"]
[White "Flierl, Veronika"]
[Black "Reich, Elisabeth"]
[Result "1/2-1/2"]
[ECO "B23"]
[WhiteElo "1404"]
[BlackElo "1128"]
[Annotator "NA RC"]
[PlyCount "71"]
[EventDate "2020.10.27"]
[EventType "swiss"]
[EventRounds "7"]
[EventCountry "GER"]
[SourceTitle "playchess.com"]
[Source "ChessBase"]
[SourceQuality "1"]
[TimeControl "40/5400+30:1800+30"]

1. e4 {[%emt 0:00:00]} c5 {[%emt 0:00:00]} 2. Nc3 {[%emt 0:00:00]} d6 {[%emt 0:00:00]} 3. f4 {[%emt 0:00:00]} Nf6 {[%emt 0:00:00]} 4. Nf3 {[%emt 0:00:00]} g6 {[%emt 0:00:00]} 5. Bc4 {[%emt 0:01:32]} Nc6 {[%emt 0:00:23]} 6. O-O {[%emt 0:00:54]} Bg7 {[%emt 0:01:42]} 7. Bb5 {[%emt 0:02:55]} Bd7 {[%emt 0:00:45]} 8. Bxc6 {[%emt 0:02:37]} Bxc6 {[%emt 0:00:13]} 9. d3 {[%emt 0:00:18]} Qb6 {[%emt 0:01:39]} 10. Kh1 {[%emt 0:05:11]} a6 {[%emt 0:04:04]} 11. Qe1 {[%emt 0:03:13]} Qc7 {[%emt 0:09:58]} 12. Qh4 {[%emt 0:04:13]} h5 {[%emt 0:01:23]} 13. Ng5 {[%emt 0:07:52]} Nh7 {[%emt 0:07:55]} 14. Nd5 {[%emt 0:06:36]} Bxd5 {[%emt 0:00:26]} 15. exd5 {[%emt 0:00:17]} Nxg5 {[%emt 0:00:48]} 16. Qxg5 {[%emt 0:00:45]} Bf6 {[%emt 0:00:43]} 17. Qg3 {[%emt 0:00:26]} a5 {[%emt 0:02:14]} 18. Qe3 {[%emt 0:02:29]} a4 {[%emt 0:01:52]} 19. Rb1 {[%emt 0:02:57]} Qd7 {[%emt 0:01:50]} 20. Qe4 {[%emt 0:05:09]} b5 {[%emt 0:11:44]} 21. f5 {[%emt 0:02:17]} gxf5 {[%emt 0:00:47]} 22. Rxf5 {[%emt 0:00:12]} Be5 {[%emt 0:00:17]} 23. Qf3 {[%emt 0:00:27]} f6 {[%emt 0:01:10]} 24. Rxh5 {[%emt 0:03:21]} Rxh5 {[%emt 0:02:45]} 25. Qxh5+ {[%emt 0:00:08]} Kd8 {[%emt 0:00:08]} 26. Qf3 {[%emt 0:07:50]} Kc7 {[%emt 0:01:23]} 27. Bf4 {[%emt 0:00:15]} Qf5 {[%emt 0:00:51]} 28. Rf1 {[%emt 0:03:51]} Bxf4 {[%emt 0:00:27]} 29. Qxf4 {[%emt 0:00:06]} Qxd5 {[%emt 0:00:11]} 30. Re1 {[%emt 0:02:25]} Qf7 {[%emt 0:14:20]} 31. d4 {[%emt 0:10:23]} c4 {[%emt 0:03:13]} 32. c3 {[%emt 0:02:20]} Rb8 {[%emt 0:03:59]} 33. Qd2 {[%emt 0:02:04]} Rh8 {[%emt 0:06:25]} 34. Qe3 {[%emt 0:06:07]} Re8 {[%emt 0:01:58]} 35. Rd1 {[%emt 0:02:40]} Qh5 {[%emt 0:02:42]} 36. Qg1 1/2-1/2

[Event "GER-ch Youth U12W 2020"]
[Site "Willingen"]
[Date "2020.10.29"]
[Round "4.15"]
[White "Rosin, Ida"]
[Black "Hergenröder, Cora"]
[Result "0-1"]
[ECO "C45"]
[WhiteElo "1387"]
[BlackElo "1422"]
[Annotator "NA RC"]
[PlyCount "96"]
[EventDate "2020.10.27"]
[EventType "swiss"]
[EventRounds "7"]
[EventCountry "GER"]
[SourceTitle "playchess.com"]
[Source "ChessBase"]
[SourceQuality "1"]
[TimeControl "40/5400+30:1800+30"]

1. e4 {[%emt 0:00:00]} e5 {[%emt 0:00:00]} 2. Nf3 {[%emt 0:00:00]} Nc6 {[%emt 0:00:00]} 3. d4 {[%emt 0:00:00]} exd4 {[%emt 0:00:00]} 4. Nxd4 {[%emt 0:00:07]} Bc5 {[%emt 0:00:00]} 5. c3 {[%emt 0:00:26]} Qf6 {[%emt 0:01:58]} 6. Be3 {[%emt 0:00:23]} d6 {[%emt 0:02:28]} 7. Bc4 {[%emt 0:01:12]} Nge7 {[%emt 0:02:58]} 8. O-O {[%emt 0:00:30]} Ne5 {[%emt 0:05:29]} 9. Be2 {[%emt 0:01:32]} Bd7 {[%emt 0:01:53]} 10. b4 {[%emt 0:03:49]} Bb6 {[%emt 0:03:05]} 11. a4 {[%emt 0:01:30]} a5 {[%emt 0:04:41]} 12. b5 {[%emt 0:00:59]} O-O {[%emt 0:01:28]} 13. c4 {[%emt 0:01:25]} Qg6 {[%emt 0:07:40]} 14. Bf3 {[%emt 0:01:23]} Nxc4 {[%emt 0:02:45]} 15. Bf4 {[%emt 0:03:57]} Rad8 {[%emt 0:13:28]} 16. Qd3 {[%emt 0:03:13]} Ne5 {[%emt 0:02:27]} 17. Bxe5 {[%emt 0:01:27]} dxe5 {[%emt 0:00:11]} 18. Ne2 {[%emt 0:00:37]} Bg4 {[%emt 0:05:51]} 19. Qc3 {[%emt 0:02:01]} Bh5 {[%emt 0:10:07]} 20. Bxh5 {[%emt 0:01:00]} Qxh5 {[%emt 0:00:27]} 21. Ng3 {[%emt 0:00:36]} Qg6 {[%emt 0:00:58]} 22. Ra3 {[%emt 0:01:34]} Rd4 {[%emt 0:06:54]} 23. Nd2 {[%emt 0:01:16]} f6 {[%emt 0:08:51]} 24. Nf3 {[%emt 0:02:09]} Rd6 {[%emt 0:01:03]} 25. Nh4 {[%emt 0:01:33]} Qg4 {[%emt 0:00:50]} 26. Nf3 {[%emt 0:00:28]} Ng6 {[%emt 0:00:52]} 27. h3 {[%emt 0:01:55]} Qxg3 {[%emt 0:01:36]} 28. Qc4+ {[%emt 0:03:00]} Kh8 {[%emt 0:02:00]} 29. Kh1 {[%emt 0:01:54]} Bxf2 {[%emt 0:01:26]} 30. Qxc7 {[%emt 0:01:48]} Nf4 {[%emt 0:02:14]} 31. Rxf2 {[%emt 0:01:30]} Qxf2 {[%emt 0:01:01]} 32. Nh4 {[%emt 0:01:16]} Rd1+ {[%emt 0:00:35]} 33. Kh2 {[%emt 0:00:24]} Qxh4 {[%emt 0:02:40]} 34. Rg3 {[%emt 0:00:26]} Rh1+ {[%emt 0:00:18]} 35. Kxh1 {[%emt 0:00:12]} Qxg3 {[%emt 0:00:09]} 36. Qc2 {[%emt 0:00:14]} Qxg2+ {[%emt 0:02:03]} 37. Qxg2 {[%emt 0:00:10]} Nxg2 {[%emt 0:00:03]} 38. Kxg2 {[%emt 0:00:08]} Rd8 {[%emt 0:00:07]} 39. Kf2 {[%emt 0:00:24]} Rd3 {[%emt 0:00:18]} 40. h4 {[%emt 0:00:16]} g5 {[%emt 0:00:22]} 41. hxg5 {[%emt 0:30:08]} fxg5 {[%emt 0:30:08]} 42. Ke2 {[%emt 0:00:07]} Ra3 {[%emt 0:00:16]} 43. Kd2 {[%emt 0:00:15]} g4 {[%emt 0:00:06]} 44. Ke2 {[%emt 0:00:04]} g3 {[%emt 0:00:08]} 45. Kf1 {[%emt 0:00:02]} Ra2 {[%emt 0:00:12]} 46. b6 {[%emt 0:00:24]} h5 {[%emt 0:00:22]} 47. Ke1 {[%emt 0:00:12]} g2 {[%emt 0:00:06]} 48. Kd1 {[%emt 0:00:13]} g1=Q# 0-1

[Event "GER-ch Youth U12W 2020"]
[Site "Willingen"]
[Date "2020.10.29"]
[Round "4.16"]
[White "Margaryan, Venera"]
[Black "Heuberger, Sandra"]
[Result "1-0"]
[ECO "D60"]
[WhiteElo "1457"]
[BlackElo "1004"]
[Annotator "NA RC"]
[PlyCount "125"]
[EventDate "2020.10.27"]
[EventType "swiss"]
[EventRounds "7"]
[EventCountry "GER"]
[SourceTitle "playchess.com"]
[Source "ChessBase"]
[SourceQuality "1"]
[TimeControl "40/5400+30:1800+30"]

1. d4 {[%emt 0:00:00]} d5 {[%emt 0:00:00]} 2. c4 {[%emt 0:00:00]} e6 {[%emt 0:00:00]} 3. Nc3 {[%emt 0:00:00]} Nf6 {[%emt 0:00:00]} 4. Bg5 {[%emt 0:00:16]} Be7 {[%emt 0:00:11]} 5. e3 {[%emt 0:00:15]} O-O {[%emt 0:00:30]} 6. Nf3 {[%emt 0:00:29]} Nbd7 {[%emt 0:01:09]} 7. cxd5 {[%emt 0:00:40]} exd5 {[%emt 0:00:26]} 8. Bd3 {[%emt 0:00:35]} Re8 {[%emt 0:00:40]} 9. Qc2 {[%emt 0:01:33]} Nf8 {[%emt 0:01:26]} 10. Ne5 {[%emt 0:00:54]} c6 {[%emt 0:12:43]} 11. O-O {[%emt 0:02:06]} Bd6 {[%emt 0:06:02]} 12. f4 {[%emt 0:01:25]} Ng6 {[%emt 0:13:56]} 13. a3 {[%emt 0:02:30]} a5 {[%emt 0:01:03]} 14. Ne2 {[%emt 0:04:36]} Be7 {[%emt 0:04:27]} 15. Ng3 {[%emt 0:02:43]} Nd7 {[%emt 0:03:12]} 16. Bxe7 {[%emt 0:00:26]} Qxe7 {[%emt 0:01:33]} 17. Nf5 {[%emt 0:00:56]} Qf8 {[%emt 0:03:20]} 18. Rf3 {[%emt 0:01:21]} Ndxe5 {[%emt 0:02:07]} 19. fxe5 {[%emt 0:00:34]} Be6 {[%emt 0:01:18]} 20. Nd6 {[%emt 0:01:57]} Red8 {[%emt 0:00:50]} 21. Nxb7 {[%emt 0:00:34]} Rd7 {[%emt 0:00:52]} 22. Nd6 {[%emt 0:03:30]} Raa7 {[%emt 0:02:26]} 23. Qxc6 {[%emt 0:01:18]} Rac7 {[%emt 0:03:09]} 24. Qa4 {[%emt 0:00:57]} Qa8 {[%emt 0:01:40]} 25. b4 {[%emt 0:03:28]} Ra7 {[%emt 0:04:06]} 26. b5 {[%emt 0:05:13]} Rd8 {[%emt 0:03:02]} 27. b6 {[%emt 0:00:52]} Re7 {[%emt 0:01:09]} 28. b7 {[%emt 0:00:36]} Qa7 {[%emt 0:01:00]} 29. Qc6 {[%emt 0:01:08]} Bd7 {[%emt 0:02:46]} 30. Qa6 {[%emt 0:00:49]} Qxa6 {[%emt 0:02:03]} 31. Bxa6 {[%emt 0:00:12]} Rb8 {[%emt 0:00:56]} 32. Rc1 {[%emt 0:02:05]} Be6 {[%emt 0:06:32]} 33. Rc5 {[%emt 0:01:05]} a4 {[%emt 0:00:27]} 34. Ra5 {[%emt 0:01:07]} Bd7 {[%emt 0:00:29]} 35. Rc5 {[%emt 0:01:18]} Nf8 {[%emt 0:04:49]} 36. Rf2 {[%emt 0:01:11]} Be6 {[%emt 0:01:11]} 37. Ra5 {[%emt 0:01:48]} Bd7 {[%emt 0:00:37]} 38. Rc2 {[%emt 0:00:50]} Ne6 {[%emt 0:01:06]} 39. Rxd5 {[%emt 0:00:39]} g6 {[%emt 0:02:15]} 40. Bb5 {[%emt 0:01:39]} Bxb5 {[%emt 0:00:44]} 41. Rxb5 {[%emt 0:30:44]} Rd7 {[%emt 0:31:36]} 42. Rc8+ {[%emt 0:02:18]} Rd8 {[%emt 0:01:51]} 43. d5 {[%emt 0:00:38]} Nf8 {[%emt 0:05:04]} 44. Rxd8 {[%emt 0:00:31]} Rxd8 {[%emt 0:00:12]} 45. b8=Q {[%emt 0:00:12]} Rxb8 {[%emt 0:00:41]} 46. Rxb8 {[%emt 0:00:12]} Kg7 {[%emt 0:00:07]} 47. Nb7 {[%emt 0:00:18]} Nd7 {[%emt 0:00:25]} 48. Re8 {[%emt 0:00:15]} Nb6 {[%emt 0:01:18]} 49. d6 {[%emt 0:00:10]} Nd7 {[%emt 0:00:08]} 50. Re7 {[%emt 0:00:03]} Nb6 {[%emt 0:00:15]} 51. d7 {[%emt 0:00:03]} Nxd7 {[%emt 0:00:19]} 52. Rxd7 {[%emt 0:00:01]} Kh6 {[%emt 0:00:16]} 53. Rxf7 {[%emt 0:00:07]} g5 {[%emt 0:00:15]} 54. e6 {[%emt 0:00:07]} Kg6 {[%emt 0:00:06]} 55. Rc7 {[%emt 0:00:13]} h6 {[%emt 0:00:08]} 56. e7 {[%emt 0:00:05]} Kh5 {[%emt 0:00:11]} 57. e8=Q+ {[%emt 0:00:10]} Kg4 {[%emt 0:00:24]} 58. Rc4+ {[%emt 0:00:13]} Kf5 {[%emt 0:00:15]} 59. Qe4+ {[%emt 0:00:22]} Kf6 {[%emt 0:00:10]} 60. Rc6+ {[%emt 0:00:05]} Kf7 {[%emt 0:00:16]} 61. Qe6+ {[%emt 0:00:09]} Kg7 {[%emt 0:00:17]} 62. Rc7+ {[%emt 0:00:08]} Kf8 {[%emt 0:00:09]} 63. Qc8# {[%emt 0:00:06]} 1-0

[Event "GER-ch Youth U12W 2020"]
[Site "Willingen"]
[Date "2020.10.29"]
[Round "4.17"]
[White "Steinlechner, Katja"]
[Black "Cerkez, Lorena"]
[Result "1/2-1/2"]
[ECO "E61"]
[WhiteElo "1366"]
[BlackElo "1258"]
[Annotator "NA RC"]
[PlyCount "82"]
[EventDate "2020.10.27"]
[EventType "swiss"]
[EventRounds "7"]
[EventCountry "GER"]
[SourceTitle "playchess.com"]
[Source "ChessBase"]
[SourceQuality "1"]
[TimeControl "40/5400+30:1800+30"]

1. d4 {[%emt 0:00:00]} Nf6 {[%emt 0:00:00]} 2. c4 {[%emt 0:00:00]} g6 {[%emt 0:00:00]} 3. Nc3 {[%emt 0:00:00]} Bg7 {[%emt 0:00:00]} 4. Bg5 {[%emt 0:00:04]} d6 {[%emt 0:00:04]} 5. e3 {[%emt 0:00:30]} O-O {[%emt 0:00:20]} 6. Nf3 {[%emt 0:00:19]} c6 {[%emt 0:06:37]} 7. Be2 {[%emt 0:03:16]} Qc7 {[%emt 0:02:13]} 8. O-O {[%emt 0:02:55]} e5 {[%emt 0:09:35]} 9. dxe5 {[%emt 0:04:00]} dxe5 {[%emt 0:00:06]} 10. Qc2 {[%emt 0:04:06]} Re8 {[%emt 0:29:47]} 11. a3 {[%emt 0:05:55]} Bg4 {[%emt 0:10:22]} 12. Bxf6 {[%emt 0:06:29]} Bxf6 {[%emt 0:03:54]} 13. Rad1 {[%emt 0:03:35]} Bxf3 {[%emt 0:05:39]} 14. Bxf3 {[%emt 0:00:44]} Rd8 {[%emt 0:03:51]} 15. Rxd8+ {[%emt 0:00:39]} Bxd8 {[%emt 0:04:21]} 16. b4 {[%emt 0:01:43]} a6 {[%emt 0:02:27]} 17. Ne4 {[%emt 0:14:31]} Nd7 {[%emt 0:00:32]} 18. c5 {[%emt 0:02:50]} Be7 {[%emt 0:01:18]} 19. Rd1 {[%emt 0:03:44]} Nf6 {[%emt 0:01:18]} 20. Qd3 {[%emt 0:08:26]} Nxe4 {[%emt 0:02:33]} 21. Bxe4 {[%emt 0:01:52]} Rd8 {[%emt 0:01:19]} 22. Qb3 {[%emt 0:02:15]} Rxd1+ {[%emt 0:07:00]} 23. Qxd1 {[%emt 0:00:15]} Qd8 {[%emt 0:00:32]} 24. Qxd8+ {[%emt 0:02:08]} Bxd8 {[%emt 0:00:07]} 25. Kf1 {[%emt 0:02:12]} f5 {[%emt 0:00:23]} 26. Bd3 {[%emt 0:00:49]} a5 {[%emt 0:03:04]} 27. Ke1 {[%emt 0:02:10]} b6 {[%emt 0:03:13]} 28. cxb6 {[%emt 0:06:28]} Bxb6 {[%emt 0:00:10]} 29. b5 {[%emt 0:00:08]} cxb5 {[%emt 0:02:17]} 30. Bxb5 {[%emt 0:00:17]} Bc5 {[%emt 0:00:06]} 31. a4 {[%emt 0:00:29]} Bb4+ {[%emt 0:00:04]} 32. Ke2 {[%emt 0:00:45]} Kf7 {[%emt 0:00:27]} 33. f4 {[%emt 0:01:09]} exf4 {[%emt 0:01:06]} 34. exf4 {[%emt 0:00:13]} h6 {[%emt 0:00:56]} 35. Kf3 {[%emt 0:00:28]} h5 {[%emt 0:00:51]} 36. h3 {[%emt 0:01:13]} h4 {[%emt 0:00:50]} 37. g4 {[%emt 0:02:29]} Kf6 {[%emt 0:00:26]} 38. g5+ {[%emt 0:02:34]} Ke7 {[%emt 0:00:27]} 39. Ke3 {[%emt 0:01:09]} Bd6 {[%emt 0:00:27]} 40. Kf3 {[%emt 0:01:21]} Bc5 {[%emt 0:00:14]} 41. Bc4 {[%emt 0:30:52]} Kf8 {[%emt 0:02:05]} 1/2-1/2

[Event "GER-ch Youth U12W 2020"]
[Site "Willingen"]
[Date "2020.10.29"]
[Round "4.18"]
[White "Modali, Nikhilamrutha"]
[Black "Hoffmann, Sophia"]
[Result "1-0"]
[ECO "C50"]
[WhiteElo "1193"]
[BlackElo "1345"]
[Annotator "NA RC"]
[PlyCount "47"]
[EventDate "2020.10.27"]
[EventType "swiss"]
[EventRounds "7"]
[EventCountry "GER"]
[SourceTitle "playchess.com"]
[Source "ChessBase"]
[SourceQuality "1"]
[TimeControl "40/5400+30:1800+30"]

1. e4 {[%emt 0:00:00]} e5 {[%emt 0:00:00]} 2. Nf3 {[%emt 0:00:00]} Nc6 {[%emt 0:00:00]} 3. Bc4 {[%emt 0:00:00]} Bc5 {[%emt 0:00:10]} 4. d3 {[%emt 0:00:08]} Nf6 {[%emt 0:00:40]} 5. c3 {[%emt 0:00:14]} d6 {[%emt 0:00:48]} 6. O-O {[%emt 0:00:30]} Be6 {[%emt 0:00:26]} 7. Bb3 {[%emt 0:00:55]} Bg4 {[%emt 0:02:01]} 8. Nbd2 {[%emt 0:05:06]} O-O {[%emt 0:02:05]} 9. Re1 {[%emt 0:01:16]} a5 {[%emt 0:10:51]} 10. a4 {[%emt 0:04:53]} Re8 {[%emt 0:07:46]} 11. Nf1 {[%emt 0:08:13]} h6 {[%emt 0:08:42]} 12. h3 {[%emt 0:05:43]} Bh5 {[%emt 0:13:25]} 13. Ng3 {[%emt 0:02:35]} Bxf3 {[%emt 0:06:34]} 14. Qxf3 {[%emt 0:00:16]} Rf8 {[%emt 0:03:41]} 15. Nf5 {[%emt 0:03:54]} Kh7 {[%emt 0:05:34]} 16. Qg3 {[%emt 0:07:06]} Nh5 {[%emt 0:03:45]} 17. Qg4 {[%emt 0:01:38]} g6 {[%emt 0:01:01]} 18. Bxh6 {[%emt 0:10:12]} Nf6 {[%emt 0:14:59]} 19. Qh4 {[%emt 0:01:08]} Nh5 {[%emt 0:06:35]} 20. Bg5 {[%emt 0:08:37]} Qd7 {[%emt 0:03:59]} 21. g4 {[%emt 0:03:03]} Rh8 {[%emt 0:06:41]} 22. Bf6 {[%emt 0:06:09]} Rhg8 {[%emt 0:00:05]} 23. Qg5 {[%emt 0:01:38]} Nd8 {[%emt 0:01:06]} 24. Qh6# 1-0

[Event "GER-ch Youth U12W 2020"]
[Site "Willingen"]
[Date "2020.10.29"]
[Round "4.19"]
[White "Woiteck, Helena"]
[Black "Eichhorn, Mathilda"]
[Result "1/2-1/2"]
[ECO "D00"]
[WhiteElo "1092"]
[BlackElo "1560"]
[Annotator "NA RC"]
[PlyCount "144"]
[EventDate "2020.10.27"]
[EventType "swiss"]
[EventRounds "7"]
[EventCountry "GER"]
[SourceTitle "playchess.com"]
[Source "ChessBase"]
[SourceQuality "1"]
[TimeControl "40/5400+30:1800+30"]

1. d4 {[%emt 0:00:00]} d5 {[%emt 0:00:00]} 2. Bf4 {[%emt 0:00:00]} c5 {[%emt 0:00:00]} 3. e3 {[%emt 0:00:00]} Nc6 {[%emt 0:00:07]} 4. Nf3 {[%emt 0:00:30]} Nf6 {[%emt 0:00:25]} 5. c3 {[%emt 0:00:50]} Qb6 {[%emt 0:00:39]} 6. Qc2 {[%emt 0:01:09]} Bg4 {[%emt 0:01:30]} 7. Nbd2 {[%emt 0:01:09]} e6 {[%emt 0:01:03]} 8. Be2 {[%emt 0:03:17]} Be7 {[%emt 0:02:25]} 9. O-O {[%emt 0:02:28]} O-O {[%emt 0:00:31]} 10. Rfe1 {[%emt 0:01:08]} Rac8 {[%emt 0:01:34]} 11. Qb1 {[%emt 0:02:43]} Bf5 {[%emt 0:01:01]} 12. Qc1 {[%emt 0:01:46]} cxd4 {[%emt 0:09:40]} 13. exd4 {[%emt 0:02:00]} Nb4 {[%emt 0:15:09]} 14. Ne5 {[%emt 0:10:15]} Nc6 {[%emt 0:15:49]} 15. Ndf3 {[%emt 0:08:52]} h6 {[%emt 0:08:51]} 16. Nh4 {[%emt 0:05:51]} Nxd4 {[%emt 0:10:12]} 17. Be3 {[%emt 0:04:19]} Nxe2+ {[%emt 0:00:19]} 18. Rxe2 {[%emt 0:00:53]} Qb5 {[%emt 0:06:20]} 19. Re1 {[%emt 0:03:35]} Rfd8 {[%emt 0:07:39]} 20. Nxf5 {[%emt 0:01:49]} exf5 {[%emt 0:00:11]} 21. Bd4 {[%emt 0:05:57]} Bc5 {[%emt 0:01:45]} 22. a4 {[%emt 0:02:07]} Qb6 {[%emt 0:01:13]} 23. Bxc5 {[%emt 0:03:35]} Qxc5 {[%emt 0:00:10]} 24. b4 {[%emt 0:04:03]} Qxc3 {[%emt 0:00:38]} 25. Qb1 {[%emt 0:01:34]} Qc2 {[%emt 0:01:06]} 26. Rc1 {[%emt 0:02:09]} Qxc1+ {[%emt 0:00:24]} 27. Qxc1 {[%emt 0:00:12]} Rxc1+ {[%emt 0:00:07]} 28. Rxc1 {[%emt 0:00:05]} d4 {[%emt 0:00:25]} 29. Rd1 {[%emt 0:00:12]} Ne4 {[%emt 0:00:21]} 30. a5 {[%emt 0:00:57]} f6 {[%emt 0:00:34]} 31. Nd3 {[%emt 0:00:25]} b6 {[%emt 0:00:32]} 32. axb6 {[%emt 0:01:17]} axb6 {[%emt 0:00:03]} 33. f3 {[%emt 0:00:53]} Nc3 {[%emt 0:00:20]} 34. Re1 {[%emt 0:02:09]} Kf7 {[%emt 0:00:55]} 35. Kf2 {[%emt 0:00:29]} Rd6 {[%emt 0:03:52]} 36. g3 {[%emt 0:01:23]} g5 {[%emt 0:00:50]} 37. f4 {[%emt 0:00:18]} h5 {[%emt 0:05:14]} 38. h4 {[%emt 0:00:47]} Ne4+ {[%emt 0:01:00]} 39. Kg2 {[%emt 0:00:31]} Kg6 {[%emt 0:01:00]} 40. Re2 {[%emt 0:01:03]} Nc3 {[%emt 0:00:53]} 41. Re1 {[%emt 0:30:08]} b5 {[%emt 0:31:31]} 42. Kf2 {[%emt 0:00:53]} Ne4+ {[%emt 0:00:11]} 43. Kg2 {[%emt 0:00:07]} g4 {[%emt 0:00:07]} 44. Rc1 {[%emt 0:00:32]} Ra6 {[%emt 0:00:33]} 45. Rb1 {[%emt 0:00:18]} Kf7 {[%emt 0:01:10]} 46. Rb2 {[%emt 0:00:22]} Ke6 {[%emt 0:00:39]} 47. Rc2 {[%emt 0:01:23]} Kd5 {[%emt 0:02:57]} 48. Kh2 {[%emt 0:02:16]} Ra3 {[%emt 0:00:00]} 49. Nb2 {[%emt 0:00:00]} Rxg3 {[%emt 0:00:00]} 50. Rc1 {[%emt 0:00:00]} Rh3+ {[%emt 0:00:00]} 51. Kg1 {[%emt 0:00:00]} Rxh4 {[%emt 0:00:00]} 52. Na4 {[%emt 0:00:00]} Rh3 {[%emt 0:00:00]} 53. Kg2 {[%emt 0:00:00]} Rb3 {[%emt 0:00:00]} 54. Nb6+ {[%emt 0:00:00]} Kd6 {[%emt 0:00:00]} 55. Nc8+ {[%emt 0:00:00]} Kd7 {[%emt 0:00:00]} 56. Nb6+ {[%emt 0:00:00]} Ke7 {[%emt 0:00:00]} 57. Nc8+ {[%emt 0:00:00]} Kd8 {[%emt 0:00:00]} 58. Nb6 {[%emt 0:00:00]} Rc3 {[%emt 0:00:00]} 59. Ra1 {[%emt 0:00:00]} Rc2+ {[%emt 0:00:00]} 60. Kg1 {[%emt 0:00:00]} Kc7 {[%emt 0:00:00]} 61. Nd5+ {[%emt 0:00:00]} Kd6 {[%emt 0:00:00]} 62. Ne3 {[%emt 0:00:00]} Ng3 {[%emt 0:00:00]} 63. Nxc2 {[%emt 0:00:00]} Ne2+ {[%emt 0:00:00]} 64. Kf2 {[%emt 0:00:00]} d3 {[%emt 0:00:00]} 65. Ra6+ {[%emt 0:00:00]} Kd5 {[%emt 0:00:00]} 66. Ne3+ {[%emt 0:00:00]} Kd4 {[%emt 0:00:00]} 67. Rd6+ {[%emt 0:00:00]} Kc3 {[%emt 0:00:00]} 68. Rc6+ {[%emt 0:00:00]} Kd2 {[%emt 0:00:00]} 69. Nf1+ {[%emt 0:00:00]} Kd1 {[%emt 0:00:00]} 70. Ne3+ {[%emt 0:00:00]} Kd2 {[%emt 0:00:00]} 71. Nf1+ {[%emt 0:00:00]} Kd1 {[%emt 0:00:00]} 72. Ne3+ {[%emt 0:00:00]} Kd2 1/2-1/2

[Event "GER-ch Youth U12W 2020"]
[Site "Willingen"]
[Date "2020.10.29"]
[Round "4.20"]
[White "Heutling, Sarah"]
[Black "Marrufo, Emilia"]
[Result "1/2-1/2"]
[ECO "B13"]
[WhiteElo "1197"]
[BlackElo "788"]
[Annotator "NA RC"]
[PlyCount "88"]
[EventDate "2020.10.27"]
[EventType "swiss"]
[EventRounds "7"]
[EventCountry "GER"]
[SourceTitle "playchess.com"]
[Source "ChessBase"]
[SourceQuality "1"]
[TimeControl "40/5400+30:1800+30"]

1. e4 {[%emt 0:00:00]} c6 {[%emt 0:00:00]} 2. d4 {[%emt 0:00:09]} d5 {[%emt 0:00:00]} 3. exd5 {[%emt 0:00:12]} cxd5 {[%emt 0:00:02]} 4. Nc3 {[%emt 0:00:49]} Nf6 {[%emt 0:00:18]} 5. Nf3 {[%emt 0:00:19]} g6 {[%emt 0:00:21]} 6. Bf4 {[%emt 0:00:41]} Bg7 {[%emt 0:00:33]} 7. Qd2 {[%emt 0:02:26]} h6 {[%emt 0:02:03]} 8. O-O-O {[%emt 0:00:57]} Bf5 {[%emt 0:01:23]} 9. Ne5 {[%emt 0:01:53]} Nbd7 {[%emt 0:02:05]} 10. Bb5 {[%emt 0:02:30]} g5 {[%emt 0:03:14]} 11. Be3 {[%emt 0:02:35]} O-O {[%emt 0:00:56]} 12. h4 {[%emt 0:04:07]} Nxe5 {[%emt 0:01:27]} 13. dxe5 {[%emt 0:01:12]} Ne4 {[%emt 0:02:22]} 14. Nxe4 {[%emt 0:01:05]} Bxe4 {[%emt 0:03:15]} 15. f3 {[%emt 0:07:36]} Bg6 {[%emt 0:02:04]} 16. hxg5 {[%emt 0:01:12]} hxg5 {[%emt 0:02:05]} 17. Bxg5 {[%emt 0:00:38]} f6 {[%emt 0:01:45]} 18. e6 {[%emt 0:02:30]} fxg5 {[%emt 0:01:46]} 19. Qxg5 {[%emt 0:00:52]} Rf6 {[%emt 0:01:03]} 20. Bd3 {[%emt 0:02:03]} Qe8 {[%emt 0:02:04]} 21. f4 {[%emt 0:00:36]} Bxd3 {[%emt 0:01:03]} 22. Rxd3 {[%emt 0:00:08]} Rg6 {[%emt 0:01:25]} 23. Qxd5 {[%emt 0:01:09]} Rc8 {[%emt 0:02:08]} 24. c3 {[%emt 0:09:00]} b5 {[%emt 0:05:51]} 25. Qf5 {[%emt 0:01:23]} b4 {[%emt 0:01:51]} 26. Kd2 {[%emt 0:01:07]} Rxg2+ {[%emt 0:01:07]} 27. Ke3 {[%emt 0:00:32]} bxc3 {[%emt 0:03:39]} 28. Qh7+ {[%emt 0:05:22]} Kf8 {[%emt 0:00:24]} 29. Qf5+ {[%emt 0:00:10]} Kg8 {[%emt 0:00:47]} 30. Qh7+ {[%emt 0:00:13]} Kf8 {[%emt 0:00:13]} 31. Qf5+ {[%emt 0:00:08]} Bf6 {[%emt 0:00:54]} 32. Rh8+ {[%emt 0:00:19]} Rg8 {[%emt 0:00:19]} 33. Rh7 {[%emt 0:05:49]} Rg7 {[%emt 0:00:57]} 34. Rh8+ {[%emt 0:00:19]} Rg8 {[%emt 0:00:13]} 35. Rh7 {[%emt 0:00:05]} Rg3+ {[%emt 0:00:55]} 36. Ke2 {[%emt 0:01:30]} Rg7 {[%emt 0:00:34]} 37. Rh8+ {[%emt 0:00:14]} Rg8 {[%emt 0:00:21]} 38. Rh7 {[%emt 0:00:23]} Rg7 {[%emt 0:00:48]} 39. Rh8+ {[%emt 0:00:08]} Rg8 {[%emt 0:00:10]} 40. Rh7 {[%emt 0:01:00]} Rg2+ {[%emt 0:02:23]} 41. Ke3 {[%emt 0:28:14]} Rg3+ {[%emt 0:30:16]} 42. Ke2 {[%emt 0:00:09]} Rg2+ {[%emt 0:00:29]} 43. Ke3 {[%emt 0:00:16]} Rg3+ {[%emt 0:00:47]} 44. Ke2 {[%emt 0:00:20]} Rg2+ 1/2-1/2